bitfinex/quotes_SOLUSD_20241122
["timestamp","ask_amount","ask_price","bid_price","bid_amount"]
[1732259513759,23.776884,259.28,259.06,16.3712]
[1732259513956,9.65478089,259.25,259.1,16.3712]
[1732259514951,6.02703056,259.36,259.12,16.3712]
[1732259515158,9.65478089,259.27,259.12,16.3712]
[1732259515656,9.65478089,259.23,259.12,16.3712]
[1732259516037,9.65478089,259.21,259.12,16.3712]
[1732259516838,9.65478089,259.19,259.12,16.3712]
[1732259518236,9.65478089,259.21,259.12,16.3712]
[1732259522843,9.65478089,259.19,259.12,16.3712]
[1732259524266,20.0,259.26,259.12,16.3712]
[1732259524441,9.65478089,259.21,259.12,16.3712]
[1732259526966,20.0,259.16,259.12,16.3712]
[1732259527143,20.0,259.26,259.12,16.3712]
[1732259527345,9.65478089,259.19,259.12,16.3712]
[1732259527554,23.776884,259.18,259.12,16.3712]
[1732259527866,9.65478089,259.16,259.12,16.3712]
[1732259528448,23.776884,259.15,259.12,16.3712]
[1732259529754,9.65478089,259.14,259.05,6.292]
[1732259530057,9.65478089,259.14,259.05,21.6414]
[1732259530257,23.776884,259.13,259.05,21.6414]
[1732259530767,9.65478089,259.08,259.05,15.3494]
[1732259531650,9.65478089,259.06,258.99,21.715]
[1732259533547,23.776884,259.15,258.99,21.715]
[1732259533548,20.0,259.14,258.99,21.715]
[1732259533746,29.65478089,259.12,258.99,21.715]
[1732259533973,9.65478089,259.12,258.99,21.715]
[1732259535866,20.0,259.16,259.0,15.423]
[1732259536251,3.8573,259.25,259.0,15.423]
[1732259536252,9.65478089,259.19,259.03,20.0]
[1732259536870,9.65478089,259.17,259.03,20.0]
[1732259537747,38.61912356,259.22,259.02,15.423]
[1732259537748,9.65478089,259.15,259.02,15.423]
[1732259539066,9.65478089,259.13,259.02,15.423]
[1732259539464,43.776884,259.21,259.02,15.423]
[1732259539664,9.65478089,259.15,259.02,15.423]
[1732259540961,23.776884,259.14,259.02,15.423]
[1732259541479,9.65478089,259.13,259.02,15.423]
[1732259542255,23.776884,259.12,259.02,15.423]
[1732259542873,23.776884,259.1,259.02,15.423]
[1732259546805,23.776884,259.08,259.02,15.423]
[1732259548357,23.776884,259.1,259.02,15.423]
[1732259548560,20.0,259.09,259.02,15.423]
[1732259548768,23.776884,259.08,259.02,15.423]
[1732259548970,23.776884,259.1,259.02,15.423]
[1732259552088,9.65478089,259.15,259.02,15.423]
[1732259553379,43.776884,259.14,259.02,15.423]
[1732259555771,23.776884,259.12,259.02,15.423]
[1732259557072,9.65478089,259.05,259.02,15.423]
[1732259558469,9.65478089,259.06,259.02,15.423]
[1732259558659,43.776884,259.05,259.02,15.423]
[1732259559665,43.776884,259.05,258.99,6.292]
[1732259559864,43.776884,259.05,258.96,15.724]
[1732259560177,9.65478089,259.04,258.96,15.724]
[1732259560370,9.65478089,259.0,258.96,15.724]
[1732259560878,23.776884,258.99,258.9,15.724]
[1732259561299,23.776884,258.97,258.9,15.724]
[1732259563586,9.65478089,259.04,258.9,15.724]
[1732259563783,20.0,259.03,258.9,15.724]
[1732259564693,23.776884,259.02,258.9,15.724]
[1732259569783,23.776884,258.99,258.9,15.724]
[1732259570702,23.776884,259.1,258.91,22.658]
[1732259571003,23.776884,259.05,258.92,20.0]
[1732259572200,23.776884,259.03,258.92,20.0]
[1732259572502,9.65478089,259.12,258.95,20.0]
[1732259572685,9.65478089,259.1,258.95,20.0]
[1732259573289,9.65478089,259.08,258.95,20.0]
[1732259574289,9.65478089,259.1,258.95,20.0]
[1732259574481,7.71171301,259.2,258.95,20.0]
[1732259574685,41.11912356,259.22,258.94,22.658]
[1732259574686,20.0,259.19,258.97,20.0]
[1732259574902,9.65478089,259.12,258.97,20.0]
[1732259576106,23.776884,259.11,258.97,20.0]
[1732259581388,9.65478089,259.1,258.97,20.0]
[1732259585218,23.776884,259.2,258.99,26.1939]
[1732259585411,23.776884,259.13,258.99,26.1939]
[1732259585612,23.776884,259.13,259.0,16.4641]
[1732259586203,23.776884,259.13,259.01,20.0]
[1732259586707,20.0,259.19,259.01,20.0]
[1732259586910,9.65478089,259.15,259.01,20.0]
[1732259587218,9.65478089,259.2,259.05,20.0]
[1732259587448,9.65478089,259.12,259.04,22.658]
[1732259588717,9.65478089,259.08,259.04,22.658]
[1732259588900,23.776884,259.04,258.98,16.4641]
[1732259589216,9.65478089,259.05,258.98,16.4641]
[1732259589721,9.65478089,259.07,258.98,16.4641]
[1732259589915,9.65478089,259.11,258.98,16.4641]
[1732259590096,23.776884,259.1,258.99,20.0]
[1732259591216,9.65478089,259.09,258.99,20.0]
[1732259591410,9.65478089,259.07,258.98,16.4641]
[1732259592722,9.65478089,259.02,258.9,6.358]
[1732259594223,9.65478089,259.02,258.91,20.0]
[1732259595038,9.65478089,259.0,258.9,6.358]
[1732259595542,9.65478089,259.0,258.91,20.0]
[1732259596743,9.65478089,259.0,258.9,6.358]
[1732259597754,9.65478089,258.98,258.9,6.358]
[1732259599049,3.8598,259.08,258.89,16.5336]
[1732259599050,9.65478089,258.96,258.89,16.5336]
[1732259600647,23.776884,258.95,258.89,16.5336]
[1732259601439,23.776884,258.95,258.84,20.0]
[1732259601644,9.65478089,258.94,258.84,20.0]
[1732259604526,20.0,259.07,258.84,20.0]
[1732259604732,23.776884,258.98,258.84,20.0]
[1732259606554,23.776884,259.0,258.84,20.0]
[1732259608545,23.776884,258.98,258.84,20.0]
[1732259609733,23.776884,259.0,258.86,20.0]
[1732259609948,15.0094,259.09,258.86,20.0]
[1732259610149,9.65478089,259.04,258.86,20.0]
[1732259610329,23.776884,259.03,258.86,20.0]
[1732259610848,19.0264,259.17,258.91,20.0]
[1732259611034,9.65478089,259.07,258.91,20.0]
[1732259612245,6.4115,259.14,258.91,20.0]
[1732259612428,19.0265,259.17,258.93,20.0]
[1732259612635,9.65478089,259.1,258.93,20.0]
[1732259613649,23.776884,259.09,258.93,20.0]
[1732259614533,9.65478089,259.08,258.93,20.0]
[1732259614838,23.776884,259.07,258.93,20.0]
[1732259616334,9.65478089,259.06,258.93,20.0]
[1732259616536,9.65478089,259.04,258.93,20.0]
[1732259617557,9.65478089,259.02,258.93,20.0]
[1732259621371,23.776884,259.03,258.93,20.0]
[1732259624669,9.65478089,259.08,258.93,20.0]
[1732259625171,9.65478089,259.06,258.93,20.0]
[1732259625561,9.65478089,259.04,258.93,20.0]
[1732259626548,23.776884,259.15,258.93,20.0]
[1732259626863,9.65478089,259.06,258.93,20.0]
[1732259627259,20.0,259.16,258.93,20.0]
[1732259627459,9.65478089,259.09,258.93,20.0]
[1732259627980,9.65478089,259.07,258.93,20.0]
[1732259629865,9.65478089,259.05,258.93,20.0]
[1732259630176,9.65478089,259.02,258.92,15.3718]
[1732259631368,9.65478089,259.02,258.93,20.0]
[1732259635655,9.65478089,259.0,258.93,20.0]
[1732259635882,21.19503056,259.17,258.95,20.0]
[1732259636056,9.65478089,259.09,258.95,20.0]
[1732259636271,9.65478089,259.03,258.95,20.0]
[1732259636685,9.65478089,259.05,258.95,20.0]
[1732259638775,9.65478089,259.03,258.95,20.0]
[1732259639084,9.65478089,259.03,258.94,21.9058]
[1732259640673,20.0,259.13,258.95,20.0]
[1732259640999,9.65478089,259.07,258.95,20.0]
[1732259641794,9.88563056,259.16,258.95,20.0]
[1732259641978,9.65478089,259.07,258.95,20.0]
[1732259642898,9.65478089,259.05,258.95,20.0]
[1732259643693,9.65478089,259.06,258.95,20.0]
[1732259646977,9.65478089,259.07,258.95,20.0]
[1732259647399,9.65478089,259.09,258.95,20.0]
[1732259647583,9.65478089,259.09,258.96,15.7607]
[1732259647783,9.65478089,259.09,258.97,20.0]
[1732259648594,23.776884,259.12,258.97,20.0]
[1732259648791,9.65478089,259.09,258.97,20.0]
[1732259648993,9.65478089,259.09,258.99,20.0]
[1732259651989,9.65478089,259.07,258.98,15.7607]
[1732259652193,9.65478089,259.05,258.98,15.7607]
[1732259653408,6.02703056,259.17,258.98,15.7607]
[1732259653409,23.776884,259.14,258.99,20.0]
[1732259653598,9.65478089,259.14,258.99,20.5789692]
[1732259653800,9.65478089,259.12,258.99,20.0]
[1732259654299,9.65478089,259.1,258.99,20.0]
[1732259654895,9.65478089,259.08,258.99,20.0]
[1732259655110,9.65478089,259.08,258.98,15.7607]
[1732259658717,23.776884,259.07,258.98,15.7607]
[1732259661604,23.776884,259.05,258.98,15.7607]
[1732259661909,9.65478089,259.02,258.98,15.7607]
[1732259662315,20.0,259.12,258.98,15.7607]
[1732259662507,23.776884,259.09,258.98,15.7607]
[1732259665124,23.776884,259.07,258.98,15.7607]
[1732259666022,21.23953056,259.16,258.98,15.7607]
[1732259666213,9.65478089,259.08,258.98,15.7607]
[1732259666412,23.776884,259.07,258.98,15.7607]
[1732259669223,23.776884,259.09,258.98,15.7607]
[1732259670322,6.02703056,259.17,258.99,26.4348]
[1732259670508,9.65478089,259.17,259.02,15.2398]
[1732259670713,9.65478089,259.13,259.02,15.2398]
[1732259672123,23.776884,259.12,259.02,15.2398]
[1732259672508,33.43166489,259.12,259.02,15.2398]
[1732259675333,23.776884,259.12,259.02,15.2398]
[1732259675532,23.776884,259.13,259.02,15.2398]
[1732259677628,23.776884,259.15,259.03,20.0]
[1732259677935,9.65478089,259.18,259.03,20.0]
[1732259678332,20.0,259.22,259.03,20.0]
[1732259678528,9.65478089,259.17,259.03,20.0]
[1732259678828,23.776884,259.16,259.03,20.0]
[1732259679516,20.0,259.23,259.04,21.6746]
[1732259679834,9.65478089,259.19,259.04,21.6746]
[1732259680236,20.0,259.18,259.04,21.6746]
[1732259680812,20.72222977,259.17,259.04,21.6746]
[1732259681020,20.0,259.18,259.04,21.6746]
[1732259682135,9.65478089,259.15,259.04,21.6746]
[1732259685531,23.776884,259.14,259.04,21.6746]
[1732259687745,9.65478089,259.15,259.04,21.6746]
[1732259691848,9.65478089,259.17,259.04,21.6746]
[1732259692161,23.776884,259.16,259.04,21.6746]
[1732259693236,9.65478089,259.15,259.04,21.6746]
[1732259696135,23.776884,259.16,259.04,21.6746]
[1732259696862,23.776884,259.14,259.04,21.6746]
[1732259701367,23.776884,259.12,259.04,21.6746]
[1732259710668,23.776884,259.13,259.04,21.6746]
[1732259712765,9.65478089,259.12,259.04,21.6746]
[1732259712973,9.65478089,259.08,259.04,15.2398]
[1732259713185,23.776884,259.07,258.98,23.068]
[1732259714663,23.776884,259.03,258.98,16.6632]
[1732259714846,7.84605112,259.15,258.87,80.9]
[1732259714847,9.65478089,259.0,258.92,16.6632]
[1732259715060,9.65478089,259.0,258.81,12.15955968]
[1732259715061,9.65478089,258.94,258.86,16.6632]
[1732259715260,23.776884,258.93,258.86,16.6632]
[1732259716356,9.65478089,258.88,258.78,16.6632]
[1732259716665,38.61912356,258.96,258.78,16.6632]
[1732259716666,9.65478089,258.84,258.78,16.6632]
[1732259718455,23.776884,258.85,258.78,16.6632]
[1732259718774,23.776884,258.96,258.78,16.6632]
[1732259718982,23.776884,258.91,258.78,16.6632]
[1732259720478,9.65478089,258.94,258.79,20.0]
[1732259720981,9.65478089,258.92,258.79,20.0]
[1732259721189,9.65478089,258.9,258.79,20.0]
[1732259722277,23.776884,258.89,258.79,20.0]
[1732259722483,23.776884,258.91,258.79,20.0]
[1732259726289,9.65478089,258.9,258.79,20.0]
[1732259731262,23.776884,258.89,258.79,20.0]
[1732259731473,23.776884,258.89,258.78,16.6632]
[1732259731765,23.776884,258.87,258.78,16.6632]
[1732259733679,9.65478089,258.84,258.78,16.6632]
[1732259733884,23.776884,258.81,258.64,80.9]
[1732259734069,23.776884,258.81,258.65,22.1794]
[1732259735907,9.65478089,258.8,258.65,22.1794]
[1732259736193,23.776884,258.79,258.65,22.1794]
[1732259736690,9.65478089,258.78,258.65,22.1794]
[1732259737771,23.776884,258.75,258.65,22.1794]
[1732259738491,9.65478089,258.74,258.65,22.1794]
[1732259738692,23.776884,258.73,258.65,22.1794]
[1732259740575,9.65478089,258.74,258.65,22.1794]
[1732259743993,9.65478089,258.72,258.65,15.6684]
[1732259745881,9.65478089,258.68,258.65,15.6684]
[1732259746192,23.776884,258.79,258.65,15.6684]
[1732259746193,9.65478089,258.69,258.65,15.6684]
[1732259747697,9.65478089,258.67,258.59,6.3981]
[1732259747873,3.8645,258.76,258.59,21.4022]
[1732259747874,9.65478089,258.66,258.59,21.4022]
[1732259748482,23.776884,258.75,258.59,21.4022]
[1732259748682,9.65478089,258.68,258.59,21.4022]
[1732259752376,16.5818,258.77,258.59,21.4022]
[1732259752579,9.65478089,258.73,258.59,21.4022]
[1732259753093,9.65478089,258.73,258.6,20.0]
[1732259754783,3.8641,258.79,258.6,20.0]
[1732259754784,9.65478089,258.71,258.6,20.0]
[1732259755295,9.65478089,258.7,258.6,20.0]
[1732259756398,9.65478089,258.71,258.59,21.4022]
[1732259756582,9.65478089,258.72,258.59,21.4022]
[1732259757677,9.65478089,258.73,258.59,21.4022]
[1732259757996,23.776884,258.74,258.6,20.0]
[1732259759603,23.776884,258.75,258.61,15.0041]
[1732259759790,23.776884,258.75,258.62,20.0]
[1732259761281,23.776884,258.76,258.62,20.0]
[1732259761805,9.654781,258.89,258.62,20.0]
[1732259762115,9.65478089,258.8,258.67,15.0041]
[1732259762986,9.65478089,258.78,258.67,15.0041]
[1732259763191,9.65478089,258.8,258.67,15.0041]
[1732259763398,23.776884,258.79,258.67,15.0041]
[1732259765789,9.65478089,258.86,258.71,20.0]
[1732259766105,9.8799,258.93,258.7,6.3981]
[1732259766106,3.24,258.93,258.73,20.0]
[1732259766312,9.65478089,258.9,258.74,15.0041]
[1732259767391,38.61912356,258.96,258.75,20.0]
[1732259767588,9.65478089,258.91,258.77,15.0041]
[1732259768018,6.6399,258.99,258.77,15.0041]
[1732259768198,9.65478089,258.92,258.77,15.0041]
[1732259768791,23.776884,258.91,258.77,15.0041]
[1732259769598,23.776884,258.91,258.78,20.0]
[1732259770688,9.65478089,258.9,258.78,20.0]
[1732259771280,23.776884,258.91,258.78,20.0]
[1732259771488,23.776884,259.0,258.78,20.0]
[1732259771788,9.65478089,258.93,258.78,20.0]
[1732259772106,9.65478089,258.93,258.8,20.0]
[1732259776298,3.8605,259.04,258.82,20.0]
[1732259776511,9.65478089,258.96,258.84,20.0]
[1732259778403,6.89524905,259.1,258.86,35.0519]
[1732259778688,9.65478089,259.03,258.89,20.0]
[1732259778898,16.5983,259.15,258.83,80.9]
[1732259778899,3.8589,259.14,258.91,20.0]
[1732259779110,9.65478089,259.06,258.91,20.0]
[1732259779901,23.776884,259.05,258.91,20.0]
[1732259780309,9.65478089,259.04,258.91,20.0]
[1732259780596,16.5983,259.15,258.91,20.0]
[1732259780801,9.65478089,259.08,258.91,20.0]
[1732259780993,9.65478089,259.08,258.93,20.0]
[1732259784806,9.65478089,259.06,258.93,20.0]
[1732259785321,9.65478089,259.04,258.93,20.0]
[1732259785814,23.776884,259.14,258.93,20.0]
[1732259786122,9.65478089,259.06,258.93,20.0]
[1732259786825,9.65478089,259.04,258.93,20.0]
[1732259788005,9.65478089,259.06,258.93,20.0]
[1732259789322,2.0,259.17,258.94,46.921584]
[1732259789527,9.65478089,259.11,258.97,20.0]
[1732259793727,9.65478089,259.09,258.97,20.0]
[1732259794329,23.776884,259.16,258.97,20.0]
[1732259794330,9.65478089,259.07,258.97,20.0]
[1732259794654,9.65478089,259.05,258.96,16.6524]
[1732259794931,9.65478089,259.15,258.98,16.6524]
[1732259795135,9.65478089,259.15,258.98,17.23133721]
[1732259795313,9.65478089,259.13,258.98,16.6524]
[1732259796914,23.776884,259.16,258.98,16.6524]
[1732259797246,9.65478089,259.13,258.99,20.0]
[1732259798124,9.65478089,259.13,258.98,16.6524]
[1732259799037,9.65478089,259.11,258.98,16.6524]
[1732259799941,9.65478089,259.09,258.98,16.6524]
[1732259800724,9.65478089,259.11,258.98,16.6524]
[1732259801645,2.0,259.17,258.99,26.4923]
[1732259801819,2.0,259.17,259.01,16.6524]
[1732259802927,2.0,259.17,259.0,23.776884]
[1732259802928,2.0,259.17,259.05,15.7087]
[1732259803340,2.0,259.17,259.06,20.0]
[1732259803641,2.0,259.17,259.08,35.7087]
[1732259805851,2.0,259.17,259.08,15.7087]
[1732259808431,2.0,259.17,259.09,21.6476]
[1732259809239,2.0,259.17,259.1,20.0]
[1732259809448,2.0,259.17,259.09,21.6476]
[1732259809632,2.0,259.17,259.11,15.3723]
[1732259811548,9.65478089,259.25,259.22,133.1]
[1732259811738,9.65478089,259.25,259.11,15.3723]
[1732259811942,20.0,259.34,259.11,15.3723]
[1732259812121,9.65478089,259.26,259.11,15.3723]
[1732259812526,9.65478089,259.24,259.11,15.3723]
[1732259812826,23.776884,259.23,259.11,15.3723]
[1732259813347,23.776884,259.21,259.11,15.3723]
[1732259813841,23.776884,259.19,259.11,15.3723]
[1732259818843,23.776884,259.15,259.11,15.3723]
[1732259822068,23.776884,259.16,259.11,15.3723]
[1732259822564,9.65478089,259.17,259.04,6.2753]
[1732259822565,23.776884,259.14,259.05,15.3723]
[1732259822743,9.65478089,259.13,259.05,15.3723]
[1732259822944,23.776884,259.12,259.05,15.3723]
[1732259823260,23.776884,259.1,259.05,15.3723]
[1732259824241,23.776884,259.16,259.05,15.3723]
[1732259827144,23.776884,259.18,259.05,15.3723]
[1732259827465,23.776884,259.2,259.06,20.0]
[1732259828768,38.84526496,259.2,259.06,20.0]
[1732259830070,25.4958,259.36,259.1,20.0]
[1732259830367,15.06838096,259.27,259.1,20.0]
[1732259830546,29.49747259,259.36,259.1,20.0]
[1732259830753,15.06838096,259.28,259.1,24.52084891]
[1732259830963,15.06838096,259.28,259.11,3.849]
[1732259831149,15.06838096,259.24,259.1,24.52084891]
[1732259831556,23.776884,259.23,259.1,20.0]
[1732259832066,15.06838096,259.18,259.09,21.6476]
[1732259832370,23.776884,259.15,259.09,21.6476]
[1732259832674,15.06838096,259.11,259.09,15.3723]
[1732259832846,23.776884,259.1,259.02,22.0107]
[1732259833052,23.776884,259.06,259.02,22.0107]
[1732259833473,23.776884,259.08,259.02,22.0107]
[1732259834258,23.776884,259.1,259.02,22.0107]
[1732259834656,23.776884,259.11,259.02,22.0107]
[1732259834854,23.776884,259.13,259.02,22.0107]
[1732259835060,22.2993,259.25,259.03,20.0]
[1732259835257,15.06838096,259.2,259.03,20.0]
[1732259836382,15.06838096,259.22,259.08,20.0]
[1732259836869,15.06838096,259.2,259.07,15.911]
[1732259837079,15.06838096,259.2,259.08,20.0]
[1732259837373,15.06838096,259.16,259.07,15.911]
[1732259837560,23.776884,259.15,259.07,15.911]
[1732259838472,23.776884,259.16,259.07,15.911]
[1732259839257,15.06838096,259.15,259.07,15.911]
[1732259839466,23.776884,259.14,259.07,15.911]
[1732259839975,23.776884,259.16,259.07,15.911]
[1732259840176,23.776884,259.16,259.08,20.0]
[1732259840479,23.776884,259.18,259.08,20.0]
[1732259841860,15.06838096,259.17,259.08,20.0]
[1732259842075,23.776884,259.16,259.08,20.0]
[1732259842763,23.776884,259.16,259.07,15.911]
[1732259844188,15.06838096,259.15,259.07,15.911]
[1732259844360,23.776884,259.14,259.07,15.911]
[1732259845880,15.06838096,259.1,259.07,15.911]
[1732259846076,15.06838096,259.22,259.07,15.911]
[1732259846077,23.776884,259.09,259.07,15.911]
[1732259846272,23.776884,259.11,259.07,15.911]
[1732259846879,23.776884,259.13,259.07,15.911]
[1732259847277,23.776884,259.15,259.07,15.911]
[1732259850081,23.776884,259.17,259.07,15.911]
[1732259850290,23.776884,259.17,259.08,20.0]
[1732259851176,15.06838096,259.2,259.1,20.0]
[1732259851478,15.06838096,259.22,259.1,20.0]
[1732259852493,23.776884,259.21,259.1,20.0]
[1732259856398,15.06838096,259.24,259.1,20.0]
[1732259856577,6.03090405,259.31,259.12,20.0]
[1732259856780,9.64032482,259.24,259.12,20.0]
[1732259857086,6.03090405,259.31,259.12,20.0]
[1732259857286,30.88214985,259.34,259.12,20.0]
[1732259857287,9.64032482,259.27,259.12,20.0]
[1732259857795,9.64032482,259.27,259.13,3.849]
[1732259858382,23.776884,259.26,259.12,20.0]
[1732259858701,23.776884,259.24,259.12,23.849]
[1732259859489,23.776884,259.24,259.12,20.0]
[1732259860685,23.776884,259.22,259.12,20.0]
[1732259862583,23.776884,259.23,259.12,20.0]
[1732259863182,23.776884,259.24,259.12,20.0]
[1732259863886,23.776884,259.22,259.12,20.0]
[1732259867812,23.776884,259.24,259.12,20.0]
[1732259875512,23.776884,259.26,259.12,20.0]
[1732259876899,9.64032482,259.25,259.12,20.0]
[1732259877098,23.776884,259.24,259.12,20.0]
[1732259877521,23.776884,259.26,259.12,20.0]
[1732259879317,23.776884,259.24,259.12,20.0]
[1732259880713,23.776884,259.2,259.11,15.7366]
[1732259881898,23.776884,259.2,259.12,20.0]
[1732259883006,23.776884,259.18,259.12,20.0]
[1732259883508,23.776884,259.16,259.11,15.7366]
[1732259883828,9.64032482,259.15,259.11,15.7366]
[1732259884022,34.87959775,259.43,259.4,2.5]
[1732259884218,15.7098,259.88,259.49,2.5]
[1732259884435,10.00047481,259.88,259.64,2.5]
[1732259884725,9.64032482,259.74,259.55,2.5]
[1732259885023,28.92097446,259.74,259.6,19.09960733]
[1732259885321,6.6309997,259.84,259.72,15.03586782]
[1732259885322,23.11,259.79,259.72,15.03586782]
[1732259885520,2.5,259.73,259.72,11.30701853]
[1732259885729,2.5,259.73,259.65,19.23138963]
[1732259885730,2.5,259.66,259.65,19.23138963]
[1732259885918,0.09367462,259.68,259.59,45.44445529]
[1732259886221,14.94823055,259.67,259.6,35.80413047]
[1732259886429,14.94823055,259.67,259.54,19.19193549]
[1732259886600,15.02249643,259.63,259.53,2.5]
[1732259887023,15.02249643,259.63,259.51,2.5]
[1732259887603,15.02249643,259.61,259.49,2.5]
[1732259888024,15.02249643,259.61,259.51,2.5]
[1732259888504,15.02249643,259.59,259.51,2.5]
[1732259889223,15.02249643,259.61,259.51,2.5]
[1732259889522,15.02249643,259.59,259.51,2.5]
[1732259889719,15.02249643,259.59,259.52,20.0]
[1732259889925,15.02249643,259.59,259.56,2.5]
[1732259890225,15.02249643,259.61,259.56,2.5]
[1732259890901,15.02249643,259.59,259.56,2.5]
[1732259891623,15.02249643,259.59,259.5,2.5]
[1732259891807,15.02249643,259.59,259.56,2.5]
[1732259892008,0.09367462,259.68,259.56,2.5]
[1732259892202,0.09367462,259.68,259.6,2.5]
[1732259892428,0.09367462,259.68,259.62,2.5]
[1732259892727,0.09367462,259.68,259.65,2.5]
[1732259893228,0.05365995,259.67,259.62,5.0]
[1732259893606,0.05365995,259.67,259.62,2.5]
[1732259893830,0.05365995,259.67,259.65,2.5]
[1732259894414,0.05365995,259.67,259.58,2.5]
[1732259894636,15.02249643,259.64,259.6,2.5]
[1732259894809,0.05365995,259.67,259.6,2.5]
[1732259895130,0.05365995,259.67,259.62,2.5]
[1732259895332,0.05365995,259.67,259.55,20.0]
[1732259895333,0.05365995,259.67,259.64,2.5]
[1732259895719,0.05365995,259.67,259.62,2.5]
[1732259896121,0.05365995,259.67,259.64,2.5]
[1732259896732,15.02249643,259.66,259.59,2.5]
[1732259897050,19.95683409,260.43,259.97,22.6337]
[1732259897221,15.2893,260.54,260.2,2.5]
[1732259897411,15.2893,260.54,259.97,22.6337]
[1732259897412,7.71660627,260.45,260.24,2.5]
[1732259897613,7.71660627,260.45,260.24,3.849]
[1732259897814,7.71660627,260.45,260.2,2.5]
[1732259898019,7.71660627,260.45,260.13,2.5]
[1732259898220,0.4,260.44,260.12,5.0]
[1732259898440,0.4,260.44,260.1,2.5]
[1732259898610,15.02249643,260.52,260.05,2.5]
[1732259898611,23.9275626,260.28,260.05,2.5]
[1732259898813,23.9275626,260.31,260.08,2.5]
[1732259899017,29.15016856,260.31,260.07,2.5]
[1732259899224,0.09367462,260.3,260.05,2.5]
[1732259899621,23.9275626,260.18,260.0,2.5]
[1732259899823,20.0,260.16,260.0,2.5]
[1732259900030,20.0,260.12,259.99,2.5]
[1732259900247,20.0,260.14,259.99,2.5]
[1732259900416,20.0,260.12,259.99,2.5]
[1732259900618,20.0,260.1,259.98,5.0]
[1732259900934,23.776884,260.13,260.01,2.5]
[1732259901240,23.776884,260.13,259.75,16.261]
[1732259901241,23.776884,260.11,260.04,2.5]
[1732259901410,23.9275626,260.22,260.0,2.5]
[1732259901611,47.7044466,260.21,260.0,2.5]
[1732259901816,23.776884,260.18,260.0,2.5]
[1732259902021,23.776884,260.18,260.05,2.5]
[1732259902226,23.776884,260.18,260.01,2.5]
[1732259902426,47.7044466,260.18,260.02,2.5]
[1732259902713,23.9275626,260.09,259.98,2.5]
[1732259903136,43.776884,260.06,259.96,2.5]
[1732259903440,43.776884,260.06,259.97,2.5]
[1732259903634,43.776884,260.06,259.96,2.5]
[1732259903836,43.776884,260.06,259.97,2.5]
[1732259904029,23.776884,260.06,259.97,2.5]
[1732259904246,23.776884,260.04,259.97,2.5]
[1732259904742,23.776884,260.02,259.97,2.5]
[1732259905522,20.0,260.03,259.96,2.5]
[1732259905725,3.8428,260.23,260.0,2.5]
[1732259905924,5.22260596,260.33,260.16,2.5]
[1732259906141,16.16989418,260.43,260.2,2.5]
[1732259906323,0.09367462,260.42,260.2,2.5]
[1732259906542,0.09367462,260.42,260.13,5.0]
[1732259906741,0.09367462,260.41,260.13,5.0]
[1732259906961,0.09367462,260.4,260.11,5.0]
[1732259907160,0.09367462,260.38,260.11,5.0]
[1732259907347,23.11,260.37,260.13,5.0]
[1732259908348,0.09367462,260.38,260.2,2.5]
[1732259908657,0.09367462,260.38,260.22,2.5]
[1732259908864,0.09367462,260.38,260.04,2.5]
[1732259908865,0.09367462,260.39,260.17,2.5]
[1732259909161,3.93407462,260.39,260.17,2.5]